bitfinex/quotes_BTCUSD_20260315
["timestamp","ask_amount","ask_price","bid_price","bid_amount"]
[1773545994957,0.00022001,71389.0,71379.0,0.09046577]
[1773545995164,0.00022001,71389.0,71381.0,0.09046577]
[1773545996544,0.07024493,71404.0,71381.0,0.09046577]
[1773545996723,0.07001624,71412.0,71381.0,0.09046577]
[1773545997124,0.07001624,71412.0,71391.0,0.09046577]
[1773545997496,0.07001624,71412.0,71393.0,0.09046577]
[1773545998674,0.07001624,71412.0,71393.0,0.09146577]
[1773545999294,0.07001624,71412.0,71394.0,0.07003389]
[1773545999498,0.07001624,71412.0,71395.0,0.09046577]
[1773546000397,0.00035013,71401.0,71395.0,0.09046577]
[1773546000767,0.07001624,71412.0,71395.0,0.09046577]
[1773546001176,0.16302393,71412.0,71395.0,0.09046577]
[1773546001369,0.16324394,71412.0,71396.0,0.07003193]
[1773546003743,0.07023625,71412.0,71394.0,0.07003389]
[1773546003939,0.07023625,71412.0,71398.0,0.09046577]
[1773546003940,0.07023634,71412.0,71398.0,0.09046577]
[1773546004159,0.00022001,71413.0,71402.0,0.10837047]
[1773546004349,0.00022001,71413.0,71403.0,0.13944025]
[1773546004570,0.00022001,71413.0,71404.0,0.13944025]
[1773546004797,0.00022001,71413.0,71405.0,0.14084025]
[1773546005028,0.00022001,71413.0,71406.0,0.13944025]
[1773546005244,0.00022001,71413.0,71407.0,0.13944025]
[1773546005457,0.0700125,71416.0,71408.0,0.13944025]
[1773546005673,0.0700125,71416.0,71409.0,0.13944025]
[1773546005894,0.07001036,71418.0,71406.0,0.07002212]
[1773546006102,0.07001036,71418.0,71407.0,0.13941061]
[1773546006246,0.07001036,71418.0,71408.0,0.13941061]
[1773546006443,0.07001036,71418.0,71409.0,0.13941061]
[1773546006683,0.07001036,71418.0,71406.0,0.07002212]
[1773546006901,0.16301805,71418.0,71407.0,0.1393985]
[1773546007097,0.16301805,71418.0,71408.0,0.1393985]
[1773546007297,0.16301805,71418.0,71409.0,0.1393985]
[1773546007526,0.16301805,71418.0,71406.0,0.07002212]
[1773546007719,0.16301805,71418.0,71407.0,0.13938669]
[1773546007925,0.16301805,71418.0,71408.0,0.13938669]
[1773546008125,0.16301805,71418.0,71406.0,0.07002212]
[1773546008351,0.00022001,71413.0,71407.0,0.13938133]
[1773546008572,0.00022001,71413.0,71408.0,0.13938133]
[1773546008812,0.00022001,71413.0,71406.0,0.07002212]
[1773546008965,0.00022001,71413.0,71407.0,0.13937516]
[1773546009172,0.00022001,71413.0,71408.0,0.13937516]
[1773546009413,0.00022001,71413.0,71406.0,0.07002212]
[1773546009610,0.00022001,71413.0,71407.0,0.13936423]
[1773546009846,0.00022001,71413.0,71408.0,0.13921513]
[1773546010049,0.00022001,71413.0,71406.0,0.07002212]
[1773546010509,0.00022001,71413.0,71406.0,0.06987299]
[1773546010882,0.00022001,71413.0,71406.0,0.06972387]
[1773546011078,0.07001444,71414.0,71406.0,0.06972387]
[1773546011428,0.07001261,71416.0,71406.0,0.06972387]
[1773546015254,0.07023262,71416.0,71406.0,0.06972387]
[1773546015451,0.07023262,71416.0,71405.0,0.00104987]
[1773546015659,0.07023262,71416.0,71405.0,0.00050076]
[1773546016566,0.09300769,71415.0,71404.0,0.0016]
[1773546017266,0.07001428,71414.0,71404.0,0.0016]
[1773546017463,0.09300769,71413.0,71404.0,0.0016]
[1773546019285,0.07001624,71412.0,71404.0,0.0016]
[1773546021745,0.07001624,71412.0,71405.0,0.13948672]
[1773546022025,0.07001624,71412.0,71404.0,0.0016]
[1773546022026,0.07001624,71412.0,71406.0,0.13948672]
[1773546022205,0.07001624,71412.0,71407.0,0.13948672]
[1773546022402,0.07001624,71412.0,71408.0,0.13948672]
[1773546022576,0.16302393,71413.0,71409.0,0.13948672]
[1773546022577,0.00022001,71413.0,71409.0,0.13948672]
[1773546022771,0.07035982,71419.0,71410.0,0.23179636]
[1773546022977,0.07035982,71419.0,71411.0,0.13948672]
[1773546023323,0.07035982,71419.0,71412.0,0.13960439]
[1773546023577,0.07049132,71419.0,71410.0,0.09230964]
[1773546023777,0.07049132,71419.0,71411.0,0.13960397]
[1773546023961,0.07049132,71419.0,71412.0,0.13960397]
[1773546024160,0.07049132,71419.0,71413.0,0.13960397]
[1773546024382,0.07049132,71419.0,71414.0,0.13945487]
[1773546024585,0.07049132,71419.0,71410.0,0.09230964]
[1773546025079,0.07049132,71419.0,71410.0,0.09370964]
[1773546025283,0.07000938,71420.0,71410.0,0.0014]
[1773546027081,0.07000938,71420.0,71410.0,0.07141788]
[1773546029989,0.07000742,71422.0,71410.0,0.07141788]
[1773546031173,0.07000742,71422.0,71410.0,0.16372752]
[1773546031353,0.07140546,71423.0,71411.0,0.09230964]
[1773546031556,0.07000742,71422.0,71411.0,0.09230964]
[1773546031980,0.07000742,71422.0,71412.0,0.07001624]
[1773546033501,0.12886669,71422.0,71410.0,0.07001788]
[1773546033812,0.09218359,71421.0,71410.0,0.07141788]
[1773546034012,0.0700084,71420.0,71410.0,0.07141788]
[1773546035217,0.0700084,71420.0,71410.0,0.18299432]
[1773546035422,0.0700084,71420.0,71411.0,0.11157644]
[1773546036307,0.0700084,71421.0,71412.0,0.13989853]
[1773546036477,0.00022001,71420.0,71413.0,0.13989853]
[1773546036676,0.00022001,71420.0,71414.0,0.13989853]
[1773546036899,0.00022001,71420.0,71415.0,0.13989853]
[1773546037096,0.00022001,71420.0,71411.0,0.18159294]
[1773546039482,0.09218359,71418.0,71410.0,0.06370849]
[1773546039731,0.07000938,71419.0,71408.0,0.07002012]
[1773546042024,0.07000938,71419.0,71406.0,0.07002159]
[1773546042968,0.07000938,71419.0,71410.0,0.0002]
[1773546044750,0.09218359,71418.0,71406.0,0.07002163]
[1773546045061,0.09218359,71418.0,71406.0,0.07142163]
[1773546046160,0.07001134,71417.0,71406.0,0.07142163]
[1773546048930,0.07001134,71418.0,71408.0,0.07002016]
[1773546049174,0.07001134,71418.0,71409.0,0.13988317]
[1773546049390,0.07001134,71418.0,71410.0,0.13988317]
[1773546049550,0.07001134,71418.0,71411.0,0.13988317]
[1773546049751,0.07001134,71418.0,71412.0,0.13988317]
[1773546049944,0.07001134,71418.0,71413.0,0.13988317]
[1773546050160,0.07001134,71418.0,71414.0,0.13988317]
[1773546050348,0.07001134,71418.0,71415.0,0.13988317]
[1773546050547,0.10112877,71417.0,71401.0,0.0636761]
[1773546050775,0.0014,71416.0,71403.0,0.14004179]
[1773546051085,0.0700133,71415.0,71403.0,0.14004179]
[1773546052154,0.0700133,71415.0,71410.0,0.0002]
[1773546054551,0.0710133,71415.0,71410.0,0.0002]
[1773546056987,0.0710133,71415.0,71402.0,0.0016]
[1773546057197,0.17127148,71415.0,71403.0,0.14004179]
[1773546057342,0.05882128,71412.0,71403.0,0.14004179]
[1773546057964,0.07001722,71411.0,71403.0,0.14004179]
[1773546058595,0.07001722,71411.0,71403.0,0.14024179]
[1773546059763,0.07001722,71411.0,71403.0,0.21026641]
[1773546059965,0.0014,71416.0,71403.0,0.21026641]
[1773546059966,0.0700133,71415.0,71403.0,0.21026641]
[1773546061365,0.0700133,71415.0,71403.0,0.14024179]
[1773546061764,0.00035004,71419.0,71405.0,0.11432984]
[1773546061988,0.00022001,71422.0,71408.0,0.09718093]
[1773546061989,0.07000756,71421.0,71408.0,0.09718093]
[1773546062196,0.07000756,71421.0,71408.0,0.09858093]
[1773546063241,0.05882128,71420.0,71409.0,0.14004179]
[1773546063431,0.05882128,71420.0,71396.0,0.07023179]
[1773546063432,0.10025818,71418.0,71396.0,0.07023179]
[1773546063608,0.10025818,71409.0,71396.0,0.0002]
[1773546063820,0.10165818,71408.0,71396.0,0.0002]
[1773546064025,0.07002114,71407.0,71396.0,0.0702313]
[1773546064427,0.10025818,71405.0,71396.0,0.0002]
[1773546064767,0.10025818,71405.0,71389.0,0.0002]
[1773546064911,0.10035346,71405.0,71389.0,0.0002]
[1773546065319,0.10025818,71403.0,71389.0,0.0002]
[1773546065506,0.10025818,71401.0,71389.0,0.0002]
[1773546065709,0.0014,71400.0,71389.0,0.0002]
[1773546066123,0.07002899,71399.0,71389.0,0.0002]
[1773546066612,0.0528469,71398.0,71395.0,0.0002]
[1773546066878,0.0528469,71398.0,71386.0,0.06974146]
[1773546067840,0.07002899,71399.0,71386.0,0.06974146]
[1773546073274,0.07002899,71399.0,71385.0,0.07004234]
[1773546073456,0.07002899,71399.0,71386.0,0.0002]
[1773546074180,0.07002899,71399.0,71384.0,0.00035013]
[1773546074181,0.10025818,71398.0,71384.0,0.00035013]
[1773546075557,0.0014,71397.0,71384.0,0.00035013]
[1773546076587,0.07003193,71396.0,71384.0,0.00035013]
[1773546077386,0.06968189,71396.0,71384.0,0.00035013]
[1773546080522,0.06968189,71396.0,71384.0,0.00055013]
[1773546083483,0.06968189,71396.0,71384.0,0.00040113]
[1773546084434,0.06968189,71396.0,71384.0,0.00025216]
[1773546086838,0.06968189,71396.0,71378.0,0.0002]
[1773546086839,0.09773709,71393.0,71378.0,0.0002]
[1773546087147,0.05882128,71390.0,71378.0,0.0002]
[1773546087316,0.0014,71389.0,71378.0,0.0002]
[1773546088121,0.07003978,71388.0,71378.0,0.0002]
[1773546089596,0.07003978,71388.0,71372.0,0.07020526]
[1773546089597,0.05882128,71363.0,71344.0,0.10327298]
[1773546089751,0.05882128,71353.0,71336.0,0.0700904]
[1773546089948,0.0014,71352.0,71338.0,0.0263512]
[1773546090147,0.0700761,71351.0,71338.0,0.0263512]
[1773546090736,0.0700761,71351.0,71338.0,6.524e-05]
[1773546091051,0.0700761,71351.0,71335.0,6e-05]
[1773546091052,0.00650844,71347.0,71335.0,6e-05]
[1773546091261,0.0700761,71351.0,71337.0,0.1032366]
[1773546091423,0.0014,71348.0,71337.0,0.1032366]
[1773546091624,0.01375619,71347.0,71337.0,0.1032366]
[1773546092175,0.07008101,71346.0,71336.0,0.0263512]
[1773546092847,0.0292859,71345.0,71336.0,0.0263512]
[1773546093048,0.0292859,71345.0,71335.0,0.00016745]
[1773546093170,0.0292859,71345.0,71331.0,0.00035039]
[1773546093367,0.0292859,71345.0,71330.0,0.07009647]
[1773546093368,0.05882128,71341.0,71330.0,0.05577712]
[1773546093575,0.0014,71340.0,71330.0,0.05577712]
[1773546093780,0.0014,71340.0,71330.0,0.04141728]
[1773546093980,0.0014,71340.0,71330.0,0.01465132]
[1773546094182,0.07008789,71339.0,71330.0,0.05676091]
[1773546094385,0.01332502,71338.0,71330.0,0.05676091]
[1773546094711,0.01332502,71338.0,71329.0,0.15998493]
[1773546096481,0.07008985,71337.0,71329.0,0.15998493]
[1773546096639,0.01303594,71336.0,71327.0,0.01124]
[1773546097266,0.01303594,71336.0,71329.0,0.0002]
[1773546102324,0.08312744,71336.0,71329.0,0.0002]
[1773546103825,0.11153577,71373.0,71329.0,0.0002]
[1773546103826,0.07007918,71348.0,71330.0,0.07009673]
[1773546104026,0.07007918,71348.0,71331.0,0.1032366]
[1773546104027,0.0014,71347.0,71331.0,0.1032366]
[1773546104232,0.0014,71346.0,71331.0,0.1032366]
[1773546105284,0.0014,71346.0,71331.0,0.1046366]
[1773546106096,0.07007918,71348.0,71332.0,0.07009476]
[1773546106248,0.0014,71347.0,71333.0,0.1032366]
[1773546106742,0.07007918,71348.0,71333.0,0.1032366]
[1773546106743,0.0014,71346.0,71333.0,0.1032366]
[1773546106948,0.07007142,71356.0,71333.0,0.1032366]
[1773546107119,0.0014,71355.0,71333.0,0.1032366]
[1773546107683,0.0014,71354.0,71333.0,0.1032366]
[1773546108228,0.07007413,71353.0,71335.0,0.1032366]
[1773546108657,0.0014,71352.0,71335.0,0.1032366]
[1773546109018,0.0014,71351.0,71335.0,0.1032366]
[1773546109253,0.06647413,71353.0,71335.0,0.1032366]
[1773546109436,0.0014,71350.0,71335.0,0.1032366]
[1773546110366,0.07007413,71355.0,71336.0,0.07009083]
[1773546110592,0.0014,71351.0,71337.0,0.107688]
[1773546111265,0.07007142,71356.0,71337.0,0.107688]
[1773546111464,0.0014,71351.0,71337.0,0.107688]
[1773546111943,0.0014,71355.0,71337.0,0.107688]
[1773546112486,0.07007315,71354.0,71339.0,0.11186891]
[1773546113090,0.07147315,71354.0,71339.0,0.11186891]
[1773546115666,0.07147315,71354.0,71342.0,0.11186891]
[1773546117206,0.08147315,71354.0,71342.0,0.11186891]
[1773546117571,0.08147315,71354.0,71344.0,0.11186891]
[1773546121215,0.08147315,71354.0,71344.0,0.18195184]
[1773546122208,0.08169316,71354.0,71343.0,0.11186891]
[1773546124626,0.08169316,71354.0,71344.0,0.07008297]
[1773546124828,0.08169316,71354.0,71344.0,0.18195188]
[1773546127975,0.08169316,71354.0,71343.0,0.11186891]
[1773546130316,0.08169316,71354.0,71344.0,0.07008297]
[1773546133604,0.08169316,71354.0,71344.0,0.18195188]
[1773546133815,0.08169316,71354.0,71345.0,0.11186891]
[1773546135268,0.08169316,71354.0,71346.0,0.07008101]
[1773546136989,0.08029316,71354.0,71347.0,0.11186891]
[1773546137427,0.08025316,71354.0,71347.0,0.11186891]
[1773546142049,0.08025316,71354.0,71345.0,0.07008153]
[1773546144669,0.00035039,71348.0,71345.0,0.07008153]
[1773546144868,0.00035039,71348.0,71345.0,0.18589413]
[1773546147732,0.00135039,71348.0,71345.0,0.18589413]
[1773546147959,0.00035039,71348.0,71345.0,0.18589413]
[1773546149773,0.07007699,71351.0,71346.0,0.1158126]
[1773546152317,0.07007533,71352.0,71346.0,0.1158126]
[1773546152514,0.07007533,71352.0,71345.0,0.07028153]
[1773546152680,0.07029013,71352.0,71345.0,0.07028153]
[1773546152898,0.0002148,71352.0,71345.0,0.18609413]
[1773546153099,0.0002148,71352.0,71345.0,0.29796373]
[1773546154325,0.0002148,71352.0,71346.0,0.25197831]
[1773546154520,0.0700761,71351.0,71347.0,0.14010871]
[1773546154722,0.0700761,71351.0,71348.0,0.14010871]
[1773546154890,0.0700761,71351.0,71349.0,0.14010871]
[1773546155089,0.0700761,71351.0,71350.0,0.14010871]
[1773546155513,0.0702909,71351.0,71350.0,0.14010871]
[1773546155994,0.0702909,71351.0,71350.0,0.01085048]
[1773546156192,0.0702909,71351.0,71345.0,0.0002]
[1773546156594,0.0712909,71351.0,71345.0,0.0002]
[1773546157495,0.0702909,71351.0,71345.0,0.0002]
[1773546159215,0.0702909,71351.0,71346.0,0.0002]
[1773546162811,0.0702909,71351.0,71346.0,0.1160126]
[1773546163342,0.0702909,71351.0,71346.0,0.0002]
[1773546168199,0.0700761,71353.0,71346.0,0.0002]
[1773546168579,0.07007512,71352.0,71346.0,0.0002]
[1773546173523,0.0014,71355.0,71346.0,0.0002]
[1773546173690,0.07007512,71353.0,71347.0,0.12175175]
[1773546174248,0.07007512,71353.0,71346.0,0.0002]
[1773546176073,0.07029513,71353.0,71346.0,0.0002]
[1773546182212,0.05591068,71352.0,71336.0,0.0002]
[1773546182387,0.05892758,71346.0,71336.0,0.0002]
[1773546182587,0.0014,71345.0,71336.0,0.0002]
[1773546183063,0.07008297,71344.0,71336.0,0.0002]
[1773546183633,0.07008297,71344.0,71327.0,0.01124]
[1773546183634,0.05892758,71341.0,71327.0,0.01124]
[1773546183932,0.06077817,71340.0,71327.0,0.01124]
[1773546184261,0.0014,71339.0,71327.0,0.01124]
[1773546184987,0.07008887,71338.0,71327.0,0.01124]
[1773546185227,0.07008887,71338.0,71331.0,0.0002]
[1773546187128,0.07108887,71338.0,71331.0,0.0002]
[1773546187964,0.07008887,71338.0,71331.0,0.0002]
[1773546188276,0.07108887,71338.0,71331.0,0.0002]
[1773546191191,0.07108887,71338.0,71327.0,0.01124]
[1773546192501,0.07108887,71338.0,71331.0,0.0002]
[1773546193118,0.07008887,71338.0,71331.0,0.0002]
[1773546193309,0.07108887,71338.0,71331.0,0.0002]
[1773546193808,0.07008887,71338.0,71331.0,0.0002]
[1773546194027,0.07108887,71338.0,71331.0,0.0002]
[1773546194672,0.07008887,71338.0,71331.0,0.0002]
[1773546195110,0.07108887,71338.0,71331.0,0.0002]
[1773546196337,0.07008887,71338.0,71331.0,0.0002]
[1773546196488,0.07108887,71338.0,71331.0,0.0002]
[1773546196827,0.07008887,71338.0,71331.0,0.0002]
[1773546197021,0.07108887,71338.0,71331.0,0.0002]
[1773546201441,0.07130888,71338.0,71331.0,0.0002]
[1773546205408,0.07130888,71338.0,71321.0,0.02626963]
[1773546205537,0.07130888,71338.0,71321.0,0.148653]
[1773546205740,0.07130888,71338.0,71321.0,0.150053]
[1773546206362,0.07030888,71338.0,71321.0,0.150053]
[1773546206586,0.07030888,71338.0,71321.0,0.148653]
[1773546206789,0.07030888,71338.0,71321.0,0.150053]
[1773546206992,0.07030888,71338.0,71321.0,0.148653]
[1773546207195,0.05892758,71331.0,71321.0,0.12378337]
[1773546207394,0.05892758,71331.0,71321.0,0.0014]
[1773546207597,0.05892758,71331.0,71320.0,5e-05]
[1773546207915,0.1202953,71330.0,71320.0,5e-05]
[1773546208072,0.07009771,71329.0,71320.0,5e-05]
[1773546209538,0.07009771,71329.0,71323.0,0.0002]
[1773546209818,0.07109771,71329.0,71323.0,0.0002]
[1773546210003,0.07009771,71329.0,71323.0,0.0002]
[1773546210408,0.07109771,71329.0,71323.0,0.0002]
[1773546210586,0.07009771,71329.0,71323.0,0.0002]
[1773546211943,0.07109771,71329.0,71323.0,0.0002]
[1773546213661,0.07009771,71329.0,71323.0,0.0002]
[1773546214060,0.07009771,71329.0,71320.0,5e-05]
[1773546214269,0.05892758,71324.0,71307.0,0.12238337]
[1773546214468,0.05892758,71320.0,71307.0,0.12238337]
[1773546214622,0.07010754,71319.0,71309.0,0.23671321]
[1773546215814,0.07046523,71319.0,71309.0,0.23671321]
[1773546216368,0.07046523,71319.0,71315.0,0.0002]
[1773546216673,0.07009673,71330.0,71318.0,0.12238337]
[1773546216872,0.07149673,71330.0,71318.0,0.1224908]
[1773546217642,0.07009267,71335.0,71318.0,0.1224908]
[1773546217975,0.07149337,71334.0,71318.0,0.1224908]
[1773546218161,0.0014,71333.0,71320.0,0.12238337]
[1773546218570,0.07009267,71335.0,71321.0,0.07010557]
[1773546218782,0.0014,71333.0,71322.0,0.12238337]
[1773546220996,0.07009476,71332.0,71322.0,0.12238337]
[1773546223466,0.07009476,71332.0,71322.0,0.12258337]
[1773546225072,0.07009476,71332.0,71322.0,0.19268782]
[1773546225389,0.07009476,71332.0,71323.0,0.12238337]
[1773546228624,0.07009476,71332.0,71322.0,0.07030445]
[1773546228625,0.00035047,71331.0,71322.0,0.07030445]
[1773546229252,0.07009673,71330.0,71322.0,0.07030445]
[1773546230303,0.07009673,71330.0,71322.0,0.0002]
[1773546233946,0.07109673,71330.0,71322.0,0.0002]
[1773546234145,0.07009673,71330.0,71322.0,0.0002]
[1773546234555,0.07109673,71330.0,71322.0,0.0002]
[1773546234707,0.07009673,71330.0,71322.0,0.0002]
[1773546235063,0.07109673,71330.0,71322.0,0.0002]
[1773546236671,0.07009673,71330.0,71322.0,0.0002]
[1773546236870,0.07109673,71330.0,71322.0,0.0002]
[1773546237175,0.07009673,71330.0,71322.0,0.0002]
[1773546237595,0.07109673,71330.0,71322.0,0.0002]
[1773546242869,0.07009673,71330.0,71322.0,0.0002]
[1773546243164,0.07109673,71330.0,71322.0,0.0002]
[1773546244024,0.07109673,71330.0,71318.0,0.00010743]
[1773546244519,0.07105673,71330.0,71318.0,6.743e-05]
[1773546245680,0.07005673,71330.0,71318.0,6.743e-05]
[1773546248629,0.07005673,71330.0,71318.0,0.00026743]
[1773546249027,0.11888784,71327.0,71315.0,0.0002]
[1773546249247,0.11888784,71327.0,71315.0,0.00025523]
[1773546250116,0.07010066,71326.0,71315.0,0.00025523]
[1773546250262,0.07150066,71326.0,71315.0,0.00025523]
[1773546251277,0.0014,71325.0,71315.0,0.00025523]
[1773546252456,0.07010263,71324.0,71315.0,0.00025523]
[1773546254837,0.0014,71323.0,71315.0,0.12928031]
[1773546256524,0.0014,71322.0,71315.0,0.07036656]
[1773546256744,0.0014,71322.0,71316.0,0.12902508]
[1773546257145,0.0014,71322.0,71315.0,0.07036656]
[1773546257146,0.0014,71322.0,71315.0,0.00025523]
[1773546258893,0.0014,71322.0,71315.0,0.12928031]
[1773546259095,0.07150528,71322.0,71315.0,0.12928031]
[1773546259815,0.07150528,71322.0,71314.0,0.04450843]
[1773546260011,0.0014,71321.0,71314.0,0.04450843]
[1773546260713,0.07031772,71330.0,71314.0,0.12902508]
[1773546260888,0.0014,71329.0,71314.0,0.12913236]
[1773546261061,0.07010066,71329.0,71314.0,0.12913236]
[1773546261271,0.0014,71328.0,71314.0,0.12913236]
[1773546262705,0.0014,71328.0,71316.0,0.11720745]
[1773546262882,0.07149914,71328.0,71316.0,0.11720745]
[1773546264107,0.07009914,71328.0,71316.0,0.11720745]
[1773546264307,0.07149914,71328.0,71316.0,0.11720745]
[1773546264802,0.07149914,71328.0,71318.0,0.11720745]
[1773546265639,0.07009914,71328.0,71318.0,0.11720745]
[1773546265849,0.0014,71327.0,71317.0,0.07010951]
[1773546266640,0.07009914,71328.0,71317.0,0.07010951]
[1773546266850,0.00022001,71330.0,71317.0,0.11720745]
[1773546267023,0.0014,71329.0,71317.0,0.11720745]
[1773546267420,0.07031727,71330.0,71317.0,0.11720745]
[1773546267421,0.00022001,71330.0,71317.0,0.11720745]
[1773546267668,0.0014,71329.0,71317.0,0.11720745]
[1773546268831,0.0014,71329.0,71319.0,0.11720745]
[1773546269040,0.0014,71331.0,71319.0,0.11720745]
[1773546270246,0.07009083,71336.0,71319.0,0.11720745]
[1773546270467,0.0014,71335.0,71319.0,0.11720745]
[1773546271022,0.0014,71334.0,71321.0,0.11720745]
[1773546271497,0.07009083,71336.0,71321.0,0.11720745]
[1773546271498,0.0014,71333.0,71321.0,0.11720745]
[1773546271902,0.07009083,71336.0,71321.0,0.11720745]
[1773546272106,0.0014,71333.0,71321.0,0.11720745]
[1773546273228,0.07149409,71333.0,71322.0,0.07010459]
[1773546273425,0.00022001,71338.0,71323.0,0.11720745]
[1773546273599,0.00022001,71347.0,71330.0,0.11720745]
[1773546273600,0.08184386,71345.0,71330.0,0.11720745]
[1773546274484,0.0014,71344.0,71330.0,0.11720745]
[1773546274672,0.00022001,71341.0,71330.0,0.11720745]
[1773546274879,0.00022001,71341.0,71330.0,0.11751445]
[1773546275339,0.00022001,71341.0,71331.0,0.07009575]
[1773546275894,0.00022001,71341.0,71331.0,0.07040275]
[1773546276096,0.07148307,71344.0,71332.0,0.11720745]
[1773546276325,0.0014,71343.0,71332.0,0.11720745]
[1773546276528,0.07008307,71344.0,71332.0,0.11720745]
[1773546276850,0.0014,71343.0,71332.0,0.11751445]
[1773546277024,0.0014,71343.0,71332.0,0.000307]
[1773546278144,0.07008307,71344.0,71334.0,0.11720745]
[1773546278145,0.0014,71344.0,71334.0,0.11720745]
[1773546278727,0.0014,71344.0,71333.0,0.07009378]
[1773546278929,0.0014,71344.0,71333.0,0.07040078]
[1773546280114,0.0014,71344.0,71334.0,0.11720745]
[1773546281072,0.0014,71344.0,71334.0,0.11751445]
[1773546281624,0.07169631,71351.0,71334.0,0.11751445]
[1773546281830,0.07169631,71351.0,71336.0,0.11720018]
[1773546282076,0.07169631,71351.0,71337.0,0.07008985]
[1773546282380,0.07169631,71351.0,71338.0,0.11696826]
[1773546282933,0.00022001,71345.0,71338.0,0.11714626]
[1773546286963,0.00022001,71345.0,71339.0,0.07008789]
[1773546287131,0.00022001,71345.0,71338.0,0.000178]
[1773546287132,0.18722931,71344.0,71334.0,0.07022173]
[1773546287336,0.11714634,71343.0,71334.0,0.07022173]
[1773546288860,0.11714634,71343.0,71334.0,0.000129]
[1773546289067,0.11714634,71341.0,71334.0,0.000129]
[1773546289862,0.07008494,71342.0,71334.0,0.000129]
[1773546290270,0.07030401,71343.0,71334.0,0.000129]
[1773546292370,0.00022001,71343.0,71334.0,0.000129]
[1773546293474,0.00022001,71343.0,71334.0,0.0702218]
[1773546296298,0.00022001,71343.0,71334.0,0.0704218]
[1773546298744,0.11849182,71342.0,71329.0,0.11183513]
[1773546298921,0.11849182,71342.0,71327.0,0.000129]
[1773546299101,0.11849182,71342.0,71327.0,0.07022842]
[1773546299638,0.11849182,71342.0,71327.0,0.000129]
[1773546299848,0.11365556,71339.0,71326.0,0.07030057]
[1773546300053,0.11709182,71338.0,71326.0,0.07030057]
[1773546300297,0.11709182,71336.0,71326.0,0.0002]
[1773546300450,0.11709182,71334.0,71326.0,0.07030052]
[1773546300651,0.11709182,71334.0,71321.0,0.0002]
[1773546300852,0.11709182,71324.0,71310.0,0.0002]
[1773546301193,0.03169238,71333.0,71302.0,0.07012341]
[1773546301194,0.11709182,71319.0,71302.0,0.07012341]
[1773546301474,0.11709182,71313.0,71301.0,0.07012524]
[1773546301620,0.11709182,71311.0,71301.0,0.07012524]
[1773546301823,0.0014,71310.0,71301.0,0.07012524]
[1773546302021,0.0014,71310.0,71301.0,0.07048293]
[1773546302261,0.07151653,71310.0,71301.0,0.07048293]
[1773546304400,0.07151653,71310.0,71301.0,0.07068293]
[1773546304947,0.07151661,71310.0,71297.0,0.07012895]
[1773546305172,0.11709182,71309.0,71297.0,0.00010728]
[1773546305592,0.11709182,71306.0,71293.0,0.0002]
[1773546305797,0.11709182,71302.0,71293.0,0.0002]
[1773546305972,0.11709182,71300.0,71293.0,0.0002]
[1773546306320,0.07012721,71299.0,71293.0,0.0002]
[1773546307018,0.11709182,71299.0,71293.0,0.07033278]
[1773546309753,0.07012656,71300.0,71293.0,0.0002]
[1773546309904,0.18721838,71300.0,71293.0,0.0002]
[1773546310508,0.07012656,71300.0,71293.0,0.0002]
[1773546316268,0.07012656,71300.0,71287.0,0.07013849]
[1773546326648,0.07012656,71300.0,71287.0,0.07033849]
[1773546327177,0.07012217,71305.0,71287.0,0.07033849]
[1773546327178,0.07011003,71317.0,71291.0,0.11685238]
[1773546327340,0.07032858,71318.0,71301.0,0.11685238]
[1773546327679,0.07032858,71318.0,71303.0,0.11685238]
[1773546327977,0.07172858,71318.0,71303.0,0.11685238]
[1773546328475,0.0014,71317.0,71303.0,0.11685238]
[1773546328776,0.1186,71315.0,71301.0,0.0014]
[1773546329234,0.07011246,71314.0,71302.0,0.07012426]
[1773546331293,0.07046494,71313.0,71302.0,0.07012426]
[1773546341701,0.07046494,71313.0,71302.0,0.07032426]
[1773546341864,0.00035056,71313.0,71302.0,0.07032426]
[1773546342068,0.00022001,71313.0,71303.0,0.11685238]
[1773546342275,0.00022001,71313.0,71302.0,0.07032426]
[1773546342673,0.1186,71312.0,71302.0,0.07032409]
[1773546342847,0.05893137,71312.0,71294.0,0.16813114]
[1773546343057,0.11056598,71303.0,71291.0,0.00010751]
[1773546343259,0.12,71302.0,71291.0,0.00010751]
[1773546343976,0.1186,71300.0,71291.0,0.00010751]
[1773546348115,0.07012721,71299.0,71291.0,0.00010751]
[1773546348527,0.07012721,71299.0,71282.0,0.014296]
[1773546348727,0.07012721,71299.0,71270.0,0.08139478]
[1773546348728,0.1186,71298.0,71276.0,0.07046239]
[1773546349021,0.1186,71298.0,71276.0,0.0704623]
[1773546349222,0.07023474,71299.0,71276.0,0.0003128]
[1773546349406,0.1186,71297.0,71276.0,0.0003128]
[1773546349614,0.11373083,71295.0,71276.0,0.0003128]
[1773546349987,0.11373083,71295.0,71276.0,0.07046239]
[1773546350230,0.07013212,71294.0,71276.0,0.07046239]
[1773546350608,0.18386295,71294.0,71283.0,0.0002]
[1773546350817,0.07013212,71294.0,71283.0,0.0002]
[1773546350991,0.11373083,71293.0,71283.0,0.0002]
[1773546351404,0.11373083,71291.0,71270.0,0.01264]
[1773546351612,0.11373083,71291.0,71271.0,0.07015476]
[1773546352258,0.07013606,71290.0,71271.0,0.07015476]
[1773546352460,0.0014,71289.0,71272.0,0.12030823]
[1773546352612,0.07013606,71290.0,71272.0,0.12030823]
[1773546353159,0.0014,71289.0,71272.0,0.12030823]
[1773546354349,0.0014,71289.0,71274.0,0.12030823]
[1773546354854,0.07153714,71289.0,71273.0,0.07015279]
[1773546355207,0.0014,71289.0,71273.0,0.07015279]
[1773546355455,0.07013387,71293.0,71274.0,0.12030823]
[1773546355664,0.0014,71292.0,71274.0,0.12030823]
[1773546356041,0.0014,71291.0,71274.0,0.12030823]
[1773546356444,0.07013606,71290.0,71276.0,0.12030823]
[1773546356647,0.07013606,71290.0,71277.0,0.0014]
[1773546357753,0.12915484,71290.0,71275.0,0.07015082]
[1773546357973,0.24543341,71290.0,71275.0,0.07015082]
[1773546358685,0.24508285,71290.0,71275.0,0.07015082]
[1773546359259,0.12880428,71290.0,71275.0,0.07015082]
[1773546359663,0.12880428,71290.0,71274.0,0.07035171]
[1773546359664,0.11627857,71289.0,71274.0,0.07035171]
[1773546361286,0.11627857,71287.0,71274.0,0.07035171]
[1773546362313,0.0014,71286.0,71275.0,0.12030823]
[1773546363319,0.07014098,71285.0,71274.0,0.07035171]
[1773546363893,0.07014098,71285.0,71274.0,0.19065994]
[1773546366724,0.07014098,71285.0,71275.0,0.0002]
[1773546369141,0.0014,71284.0,71275.0,0.07034999]
[1773546369299,0.0014,71283.0,71275.0,0.07034999]
[1773546369499,0.0014,71282.0,71275.0,0.07034999]
[1773546371355,0.18641439,71291.0,71276.0,0.12030823]
[1773546371356,0.0014,71285.0,71276.0,0.12030823]
[1773546371650,0.00136,71286.0,71276.0,0.12026823]